bitfinex-derivatives/quotes_ETHF0:USTF0_20250624
["timestamp","ask_amount","ask_price","bid_price","bid_amount"]
[1750736433036,0.83286,2399.8,2399.4,1.4155]
[1750736433240,0.83289,2399.7,2399.4,1.4155]
[1750736433942,0.83293,2399.6,2399.4,1.4155]
[1750736434241,0.83293,2399.6,2399.3,3.2078]
[1750736434742,0.83293,2399.6,2399.4,0.0637515]
[1750736435145,3.30008312,2399.7,2399.4,0.0637515]
[1750736435544,0.83291,2399.7,2399.4,0.0637515]
[1750736436447,0.83291,2399.7,2399.4,1.4089515]
[1750736436636,13.70317312,2399.9,2399.4,1.4089515]
[1750736436842,0.8329,2399.7,2399.4,1.4089515]
[1750736437243,0.83287,2399.8,2399.4,2.2419515]
[1750736437438,0.83287,2399.8,2399.4,1.4089515]
[1750736437843,0.8329,2399.7,2399.4,1.4089515]
[1750736438158,0.8329,2399.7,2399.4,2.2419415]
[1750736439253,0.8329,2399.7,2399.4,1.4089515]
[1750736439744,0.8329,2399.7,2399.4,0.8967415]
[1750736440052,0.83294,2399.6,2399.4,0.0637515]
[1750736440249,3.30008312,2399.7,2399.4,0.8967515]
[1750736440452,3.30008312,2399.7,2399.4,0.0637515]
[1750736440655,0.83293,2399.6,2399.4,0.0637515]
[1750736440946,0.83296,2399.5,2399.4,0.0637515]
[1750736441152,0.8331,2399.1,2399.0,3.2078]
[1750736441342,0.83309,2399.2,2399.0,3.2078]
[1750736441540,0.83309,2399.2,2398.9,0.83317]
[1750736441850,0.83309,2399.2,2398.9,2.18777]
[1750736442045,0.83294,2399.6,2399.3,0.83302]
[1750736442242,3.2078,2399.8,2399.1,2.46717312]
[1750736442243,0.83297,2399.5,2399.2,0.83304]
[1750736442444,0.833,2399.4,2399.2,1.3546]
[1750736443546,0.83303,2399.3,2399.1,6.597]
[1750736443749,0.83302,2399.4,2399.1,7.4301]
[1750736443950,3.80997312,2399.7,2399.0,10.63792]
[1750736444151,0.833,2399.4,2399.0,11.99252]
[1750736445656,0.83304,2399.3,2399.0,11.99252]
[1750736446046,0.83302,2399.4,2399.1,0.8331]
[1750736446347,0.83302,2399.4,2399.1,2.1472]
[1750736446552,0.83302,2399.4,2399.2,0.83306]
[1750736446750,2.46717312,2399.5,2399.1,1.3141]
[1750736446751,0.83297,2399.5,2399.1,1.3141]
[1750736446952,0.83297,2399.5,2399.4,0.0637515]
[1750736447957,3.30014312,2399.5,2399.4,0.0637515]
[1750736451558,4.30123672,2399.5,2399.4,0.0637515]
[1750736454057,4.30123672,2399.5,2399.4,0.00036252]
[1750736454358,1.8340636,2399.5,2399.4,0.00036252]
[1750736455560,4.32814296,2399.5,2399.4,0.00036252]
[1750736456561,0.83301,2399.4,2399.2,0.83305]
[1750736456859,2.49407936,2399.7,2399.3,7.02297312]
[1750736457063,0.83296,2399.5,2399.4,1.5026515]
[1750736457251,1.84100525,2399.5,2399.4,1.5026515]
[1750736462370,4.33508461,2399.5,2399.4,1.5026515]
[1750736462562,4.33508461,2399.5,2399.4,0.7909515]
[1750736462749,0.83314,2399.0,2398.9,3.2078]
[1750736462954,1.84118525,2399.0,2398.9,3.2078]
[1750736464560,1.00804525,2399.0,2398.9,4.04097]
[1750736464957,1.84118525,2399.0,2398.9,4.6286]
[1750736465568,1.00804525,2399.0,2398.9,5.46177]
[1750736465764,1.84118525,2399.0,2398.9,6.17447]
[1750736466457,1.00804525,2399.0,2398.9,5.3413]
[1750736466660,1.00804525,2399.0,2398.9,6.17447]
[1750736468861,1.00804525,2399.0,2398.9,3.2078]
[1750736469460,1.00804525,2399.0,2398.9,4.6249]
[1750736469958,1.00804525,2399.0,2398.9,5.45807]
[1750736470159,1.84118525,2399.0,2398.9,4.6249]
[1750736470862,1.00804525,2399.0,2398.9,5.45807]
[1750736471763,1.00804525,2399.0,2398.9,7.92524312]
[1750736472673,1.84118525,2399.0,2398.9,4.6249]
[1750736474160,1.00804525,2399.0,2398.9,5.45807]
[1750736474673,1.84118525,2399.0,2398.9,4.6249]
[1750736475274,1.00804525,2399.0,2398.9,5.45807]
[1750736475772,1.84118525,2399.0,2398.9,4.6249]
[1750736476272,1.00804525,2399.0,2398.9,5.45807]
[1750736478179,1.84118525,2399.0,2398.9,5.45807]
[1750736478582,1.84118525,2399.0,2398.9,4.6249]
[1750736478774,1.00804525,2399.0,2398.9,4.04097]
[1750736478974,1.00804525,2399.0,2398.9,5.46417]
[1750736479277,1.84118525,2399.0,2398.9,5.5279215]
[1750736480575,1.00804525,2399.0,2398.9,5.5279215]
[1750736481075,1.84118525,2399.0,2398.9,4.6947515]
[1750736481276,1.00804525,2399.0,2398.9,5.5279215]
[1750736481676,1.84118525,2399.0,2398.9,5.5279215]
[1750736482877,1.00804525,2399.0,2398.9,5.5279215]
[1750736483080,1.84118525,2399.0,2398.9,5.5279215]
[1750736483380,1.00804525,2399.0,2398.9,5.5279215]
[1750736484479,1.84118525,2399.0,2398.9,5.5279215]
[1750736484779,1.84118525,2399.0,2398.9,3.2715515]
[1750736484977,1.00804525,2399.0,2398.9,4.1047215]
[1750736487676,1.84118525,2399.0,2398.9,3.2715515]
[1750736488181,1.84118525,2399.0,2398.9,4.1047215]
[1750736488373,1.00804525,2399.0,2398.9,4.1047215]
[1750736488578,1.84118525,2399.0,2398.9,4.1047215]
[1750736489381,1.84118525,2399.0,2398.9,3.2715515]
[1750736490075,1.84118525,2399.0,2398.9,4.1047215]
[1750736490372,1.84118525,2399.0,2398.9,3.2715515]
[1750736490574,1.84118525,2399.0,2398.9,4.1047215]
[1750736490880,1.00804525,2399.0,2398.9,4.1047215]
[1750736491781,1.84118525,2399.0,2398.9,3.2715515]
[1750736493279,1.84118525,2399.0,2398.9,4.1047215]
[1750736493475,1.84118525,2399.0,2398.9,3.2715515]
[1750736495477,1.84118525,2399.0,2398.9,4.1047215]
[1750736495879,4.30835837,2399.0,2398.9,0.0637515]
[1750736496183,1.84118525,2399.0,2398.9,5.73872462]
[1750736496383,1.84118525,2399.0,2398.9,3.2715515]
[1750736499287,1.00804525,2399.0,2398.9,0.8969215]
[1750736499586,1.00804525,2399.0,2398.9,4.1047215]
[1750736505088,1.84118525,2399.0,2398.9,4.1047215]
[1750736505593,1.00804525,2399.0,2398.9,4.1047215]
[1750736506389,1.00804525,2399.0,2398.9,6.57189462]
[1750736506691,0.83301,2399.4,2398.9,7.07392462]
[1750736506888,0.99391538,2399.3,2399.2,4.04083]
[1750736507293,0.99391538,2399.3,2399.2,4.72143]
[1750736507588,0.99391538,2399.3,2399.2,6.05663]
[1750736510883,0.99391538,2399.3,2399.2,6.1203815]
[1750736511084,0.99391538,2399.3,2399.2,8.58755462]
[1750736511583,0.83294,2399.6,2399.4,0.83297]
[1750736511782,0.83294,2399.6,2399.4,32.87097]
[1750736511783,0.99278507,2399.5,2399.4,32.87097]
[1750736513688,2.49542734,2400.0,2399.7,0.83289]
[1750736513889,0.99174718,2399.9,2399.8,2.46717312]
[1750736514086,0.83286,2399.8,2399.7,32.7221]
[1750736514285,0.83286,2399.8,2399.7,32.036]
[1750736516498,1.388,2400.1,2399.9,0.83282]
[1750736516688,0.83281,2400.0,2399.9,3.2078]
[1750736518594,0.83282,2399.9,2399.8,23.9]
[1750736518987,0.83282,2399.9,2399.7,32.036]
[1750736519187,0.83286,2399.8,2399.7,32.036]
[1750736519595,0.83286,2399.8,2399.7,55.936]
[1750736522095,0.83286,2399.8,2399.7,32.036]
[1750736522297,0.83289,2399.7,2399.6,3.2078]
[1750736522598,0.83289,2399.7,2399.6,59.1368]
[1750736523100,0.83289,2399.7,2399.6,35.2368]
[1750736524792,0.83289,2399.7,2399.6,32.029]
[1750736524993,0.83293,2399.6,2399.5,3.2078]
[1750736525193,0.83293,2399.6,2399.5,32.023]
[1750736525394,2.25453,2399.6,2399.5,32.023]
[1750736527197,0.833,2399.4,2399.3,0.694]
[1750736527393,0.83303,2399.3,2399.2,6.579]
[1750736527593,3.91090491,2399.3,2399.2,6.579]
[1750736527902,0.83314,2399.0,2398.9,9.7878]
[1750736528091,0.83314,2399.0,2398.9,35.2308]
[1750736528491,0.83314,2399.0,2398.9,3.2078]
[1750736528796,0.83314,2399.0,2398.9,35.2308]
[1750736529092,0.83314,2399.0,2398.9,3.2078]
[1750736529296,0.83321,2398.8,2398.7,48.007]
[1750736529493,0.83321,2398.8,2398.7,80.03]
[1750736530199,0.83321,2398.8,2398.7,54.587]
[1750736530395,0.7007,2398.9,2398.5,3.2078]
[1750736530696,0.83327,2398.6,2398.5,3.2078]
[1750736530899,0.83327,2398.6,2398.5,35.2308]
[1750736531705,0.83327,2398.6,2398.5,9.7878]
[1750736531999,0.83324,2398.8,2398.5,35.2328]
[1750736532189,0.7123,2399.1,2398.5,35.2328]
[1750736532190,0.7123,2399.1,2398.7,0.83324]
[1750736532392,0.83318,2398.9,2398.7,26.27824]
[1750736532802,0.83318,2398.9,2398.7,25.445]
[1750736533499,0.83318,2398.9,2398.7,26.27824]
[1750736533804,0.83318,2398.9,2398.7,26.94334]
[1750736534506,0.83318,2398.9,2398.7,26.1101]
[1750736535601,0.83318,2398.9,2398.7,26.94333]
[1750736536000,0.83318,2398.9,2398.8,3.2078]
[1750736540204,0.83318,2398.9,2398.8,3.2715515]
[1750736544712,0.83317,2398.9,2398.8,3.2715515]
[1750736545307,0.83317,2398.9,2398.8,4.1047615]
[1750736545700,0.83315,2399.0,2398.8,4.1047615]
[1750736546306,0.83317,2398.9,2398.8,4.1047615]
[1750736546506,0.83316,2399.0,2398.8,4.1047615]
[1750736546708,0.83317,2398.9,2398.8,3.2715515]
[1750736547598,10.67497312,2398.9,2398.2,3.2078]
[1750736547913,0.83339,2398.3,2397.9,2.8944]
[1750736548105,0.83339,2398.3,2398.0,1.3658]
[1750736548305,0.83342,2398.2,2398.0,1.3658]
[1750736548708,0.8334,2398.3,2398.0,1.3658]
[1750736548906,0.8334,2398.3,2398.0,2.19928]
[1750736549110,1.54421,2398.5,2398.1,3.2078]
[1750736549412,0.83338,2398.3,2398.2,0.6983]
[1750736554113,2.46717312,2398.3,2398.0,6.582]
[1750736554315,0.83348,2398.0,2397.9,0.6951]
[1750736554614,0.83348,2398.0,2397.9,7.2731]
[1750736556312,0.83348,2398.0,2397.9,0.6951]
[1750736556611,0.83347,2398.1,2397.9,0.83352]
[1750736557013,0.83343,2398.2,2397.8,11.1384]
[1750736557214,0.7109,2398.5,2397.9,3.89847312]
[1750736557405,0.83344,2398.2,2398.0,2.25037]
[1750736558413,0.83344,2398.2,2398.1,0.83345]
[1750736558812,0.83344,2398.2,2398.0,2.25037]
[1750736560224,0.8334,2398.3,2398.1,0.83345]
[1750736560528,0.8334,2398.3,2398.2,0.0637515]
[1750736560730,0.98656034,2398.4,2398.2,0.7295515]
[1750736561027,0.6566,2398.8,2398.3,2.46717312]
[1750736561226,0.83331,2398.5,2398.3,2.93125]
[1750736562026,4.47577312,2398.8,2398.3,2.0979]
[1750736562226,0.83332,2398.5,2398.3,2.93126]
[1750736562525,3.12377312,2398.8,2398.4,0.83334]
[1750736562725,0.83328,2398.6,2398.4,2.23694]
[1750736563126,0.83326,2398.7,2398.5,4.04109]
[1750736563519,0.83326,2398.7,2398.6,0.727]
[1750736563826,0.83327,2398.6,2398.5,3.2078]
[1750736567324,1.82047781,2398.6,2398.5,3.2078]
[1750736569728,0.83326,2398.7,2398.5,3.2078]
[1750736569929,0.83323,2398.8,2398.5,3.2078]
[1750736570232,1.82006511,2398.7,2398.6,2.1113]
[1750736571432,1.82025112,2398.7,2398.6,2.1113]
[1750736572929,1.82025112,2398.7,2398.6,0.7223]
[1750736574735,0.98701112,2398.7,2398.6,10.60074312]
[1750736574930,5.70322734,2399.2,2398.6,10.60073312]
[1750736574931,0.83323,2398.8,2398.6,10.60073312]
[1750736575136,0.83319,2398.9,2398.7,0.6564]
[1750736575433,0.83319,2398.9,2398.7,1.48963]
[1750736575828,3.13477312,2399.1,2398.7,1.48963]
[1750736575829,0.83321,2398.8,2398.7,0.6564]
[1750736576030,1.82047427,2398.8,2398.7,0.6564]
[1750736576935,0.98726427,2398.8,2398.7,1.48964]
[1750736577337,1.82047427,2398.8,2398.7,0.6564]
[1750736578138,0.98726427,2398.8,2398.7,1.48964]
[1750736578838,0.83324,2398.7,2398.6,6.578]
[1750736580733,0.83327,2398.6,2398.5,3.2715515]
[1750736582736,3.96083312,2398.7,2398.5,4.1048615]
[1750736583140,0.83327,2398.6,2398.5,4.1048615]
[1750736583340,0.83327,2398.6,2398.5,3.2715515]
[1750736583641,3.96083312,2398.7,2398.5,4.1048615]
[1750736583836,0.83327,2398.6,2398.5,4.1048615]
[1750736584037,0.83327,2398.6,2398.5,3.2715515]
[1750736585338,1.82064529,2398.6,2398.5,4.1048615]
[1750736585538,1.82062616,2398.6,2398.5,3.2715515]
[1750736587137,1.82062616,2398.6,2398.5,0.0637515]
[1750736593345,3.18872616,2398.6,2398.5,0.0637515]
[1750736594341,0.83338,2398.3,2398.2,3.2078]
[1750736594742,1.82073616,2398.3,2398.2,3.2078]
[1750736595437,3.89623616,2398.3,2398.2,3.2078]
[1750736595638,4.56203616,2398.3,2398.2,3.2078]
[1750736596434,2.38065616,2398.3,2398.2,4.04121]
[1750736596640,0.98735616,2398.3,2398.2,4.04121]
[1750736596847,0.98735616,2398.4,2398.2,4.04121]
[1750736597246,1.82070616,2398.4,2398.2,4.04121]
[1750736597546,0.98735616,2398.3,2398.2,4.04121]
[1750736598354,1.82073616,2398.3,2398.2,3.2078]
[1750736598549,0.98735616,2398.3,2398.2,3.2078]
[1750736598741,0.98735616,2398.3,2398.2,4.04121]
[1750736600053,0.98735616,2398.3,2398.2,4.1049615]
[1750736600348,0.83335,2398.4,2398.2,4.1049615]
[1750736600651,0.98816629,2398.3,2398.2,4.1049615]
[1750736600851,1.82154629,2398.3,2398.2,3.2715515]
[1750736602553,0.98816629,2398.3,2398.2,4.1049615]
[1750736604445,2.49542734,2399.0,2398.2,9.8475515]
[1750736604641,0.98812764,2398.9,2398.5,3.2078]
[1750736604846,0.98812764,2398.8,2398.6,0.7135]
[1750736605145,1.82136764,2398.7,2398.6,0.7135]
[1750736615360,1.82136764,2398.7,2398.6,0.7772515]
[1750736616651,1.82136764,2398.7,2398.6,0.0637515]
[1750736616852,3.18546764,2398.7,2398.6,0.0637515]
[1750736621967,3.18546764,2398.7,2398.6,1.5e-06]
[1750736621968,8.18546764,2398.7,2398.6,1.5e-06]
[1750736622161,11.39549498,2398.7,2398.6,1.5e-06]
[1750736622361,3.90006764,2398.7,2398.6,1.5e-06]
[1750736622562,6.39549498,2398.7,2398.6,1.5e-06]
[1750736622762,3.90006764,2398.7,2398.6,1.5e-06]
[1750736623469,6.39549498,2398.7,2398.6,1.5e-06]
[1750736623672,11.39549498,2398.7,2398.6,1.5e-06]
[1750736625470,6.39549498,2398.7,2398.6,1.5e-06]
[1750736636073,5.03139498,2398.7,2398.6,1.5e-06]
[1750736636378,1.82136764,2398.7,2398.6,1.5e-06]
[1750736637869,6.82136764,2398.7,2398.6,1.5e-06]
[1750736638071,8.20176764,2398.7,2398.6,1.5e-06]
[1750736638276,8.20176764,2398.7,2397.8,3.904]
[1750736638277,0.83352,2397.9,2397.8,3.904]
[1750736638572,1.82164764,2397.9,2397.8,3.904]
[1750736640871,0.83369,2397.4,2397.0,9.01325659]
[1750736641079,3.2078,2397.5,2397.2,0.83376]
[1750736641274,0.9914816,2397.4,2397.3,1.3278]
[1750736641484,0.83366,2397.5,2397.3,1.3278]
[1750736642086,0.83366,2397.5,2397.4,0.6801]
[1750736642480,1.82437852,2397.5,2397.4,0.6801]
[1750736642879,4.04146,2397.5,2397.4,0.6801]
[1750736643686,5.03169687,2397.5,2397.4,0.6801]
[1750736643886,5.03169752,2397.5,2397.4,0.6801]
[1750736644386,4.04146,2397.5,2397.4,0.6801]
[1750736644686,4.04146,2397.5,2397.4,0.7438515]
[1750736644887,5.03134805,2397.5,2397.4,0.7438515]
[1750736645386,4.04146,2397.5,2397.4,0.7438515]
[1750736659997,3.2078,2397.8,2397.7,0.83359]
[1750736660194,3.2078,2397.8,2397.7,7.40059]
[1750736660600,3.2078,2397.8,2397.7,8.83229]
[1750736661095,3.2078,2397.8,2397.7,7.9987]
[1750736661294,4.04135,2397.8,2397.7,1.4317]
[1750736661603,3.2078,2397.8,2397.7,8.83229]
[1750736662293,4.04135,2397.8,2397.7,7.9987]
[1750736662493,3.2078,2397.8,2397.7,8.83229]
[1750736663696,5.70463984,2398.5,2397.7,19.50726312]
[1750736663895,0.99023489,2398.4,2398.2,0.83341]
[1750736664095,4.04113,2398.5,2398.3,1.52318]
[1750736664317,1.82346335,2398.4,2398.3,0.6898]
[1750736664892,0.99012335,2398.4,2398.3,1.52318]
[1750736665095,1.82346335,2398.4,2398.3,0.6898]
[1750736665307,0.99012335,2398.4,2398.3,1.52318]
[1750736666606,1.82346335,2398.4,2398.3,0.6898]
[1750736667303,0.99012335,2398.4,2398.3,1.52318]
[1750736668009,1.82346335,2398.4,2398.3,0.6898]
[1750736669506,0.83345,2398.2,2398.0,3.2078]
[1750736669706,1.3244,2398.3,2398.0,4.04128]
[1750736669907,0.83342,2398.2,2398.0,4.04128]
[1750736670313,1.3244,2398.3,2398.0,3.2078]
[1750736670514,0.83343,2398.2,2398.0,4.04127]
[1750736670715,0.83345,2398.1,2398.0,4.04127]
[1750736670909,0.83344,2398.2,2398.0,4.04127]
[1750736671816,0.83344,2398.2,2398.1,0.83345]
[1750736672313,0.83344,2398.2,2398.0,4.04126]
[1750736673216,0.83344,2398.2,2398.0,0.83346]
[1750736674114,3.2078,2398.5,2397.9,7.2552]
[1750736674319,1.82179987,2398.4,2398.0,3.91637312]
[1750736674509,0.83335,2398.4,2398.2,0.8334]
[1750736674710,0.83338,2398.3,2398.2,0.8334]
[1750736675217,0.83338,2398.3,2398.1,0.83343]
[1750736675416,0.83336,2398.4,2397.9,9.7738]
[1750736675617,0.83336,2398.4,2398.2,0.83338]
[1750736675919,0.83336,2398.4,2398.3,0.83338]
[1750736676112,0.83336,2398.4,2398.2,7.39939]
[1750736676314,4.04113,2398.5,2398.3,0.83338]
[1750736676516,3.2078,2398.5,2398.4,0.83334]
[1750736679013,3.2078,2398.5,2398.3,2.95056]
[1750736679321,4.04114,2398.5,2398.3,1.54126]
[1750736680225,4.04114,2398.5,2398.3,8.10226]
[1750736680425,4.04114,2398.5,2398.3,8.10225]
[1750736680925,3.2078,2398.5,2398.4,0.83334]
[1750736681417,4.04111,2398.5,2398.3,8.10226]
[1750736681618,4.04111,2398.5,2398.4,0.83334]
[1750736681817,3.2078,2398.5,2398.4,0.83334]
[1750736682013,1.3664,2398.7,2398.5,0.83328]
[1750736682218,0.83327,2398.6,2398.5,0.83328]
[1750736682425,0.83326,2398.7,2398.5,0.83328]
[1750736682723,4.04104,2398.8,2398.6,0.83327]
[1750736682919,0.98725722,2398.7,2398.6,0.83327]
[1750736683122,3.2078,2398.8,2398.7,0.83324]
[1750736686028,3.2078,2398.8,2398.7,2.22764]
[1750736686627,3.2078,2398.8,2398.7,0.83324]
[1750736687130,3.2078,2398.8,2398.6,7.39425]
[1750736687330,3.2078,2398.8,2398.7,0.83324]
[1750736689434,3.2078,2398.8,2398.7,1.49404]
[1750736690332,3.2078,2398.8,2398.7,1.5577915]
[1750736691333,3.2078,2398.8,2398.7,2.9069915]
[1750736693728,3.2078,2398.8,2398.7,1.5577915]
[1750736694537,4.041,2398.8,2398.7,0.0637515]
[1750736694833,5.69288863,2398.8,2398.7,0.0637515]
[1750736695630,4.85968863,2398.8,2398.7,0.8969915]
[1750736695831,4.20008863,2398.8,2398.7,0.8969915]
[1750736696031,4.20012199,2398.8,2398.7,0.8969915]
[1750736696437,5.03332199,2398.8,2398.7,0.8969915]
[1750736696738,4.041,2398.8,2398.7,0.8969915]
[1750736697141,5.03333292,2398.8,2398.7,0.8969915]
[1750736697441,7.50050604,2398.8,2398.7,0.0637515]
[1750736698140,8.16640604,2398.8,2398.7,0.0637515]
[1750736702042,4.86603292,2398.8,2398.7,0.8969915]
[1750736702245,4.20013292,2398.8,2398.7,0.8969915]
[1750736710147,5.03334292,2398.8,2398.7,0.0637515]
[1750736710543,5.03334292,2398.8,2398.7,0.8969915]
[1750736710744,5.03334292,2398.8,2398.7,0.0637515]
[1750736711451,5.03334292,2398.8,2398.7,0.8969915]
[1750736712049,4.20013292,2398.8,2398.7,0.8969915]
[1750736712547,0.99233292,2398.8,2398.7,0.8969915]
[1750736714047,1.82553292,2398.8,2398.7,0.0637515]
[1750736714252,3.16623292,2398.8,2398.7,0.0637515]
[1750736717952,5.63340604,2398.8,2398.7,0.0637515]
[1750736719455,13.13024588,2398.8,2398.7,0.0637515]
[1750736720353,10.63340604,2398.8,2398.7,0.0637515]
[1750736721353,5.63340604,2398.8,2398.7,0.0637515]
[1750736722158,5.63593802,2398.8,2398.7,0.0637515]
[1750736730054,0.83334,2398.4,2398.3,6.556]
[1750736730356,4.04114,2398.4,2398.3,6.556]
[1750736730547,5.0360049,2398.4,2398.3,6.556]
[1750736731454,0.83331,2398.5,2398.3,7.38938]
[1750736731758,0.83331,2398.6,2398.4,0.83334]
[1750736731964,1.82746282,2398.5,2398.3,7.38936]
[1750736732255,0.99415282,2398.4,2398.3,7.38936]
[1750736733257,0.99415282,2398.4,2398.3,8.73176]
[1750736734958,0.99415282,2398.4,2398.3,7.9621515]
[1750736735164,1.82749282,2398.4,2398.3,6.6197515]
[1750736738169,0.99415282,2398.4,2398.3,7.4531315]
[1750736738470,5.03529282,2398.4,2398.3,6.6197515]
[1750736739466,5.03529282,2398.4,2398.3,7.4531315]
[1750736739867,5.03529282,2398.4,2398.3,6.6197515]
[1750736740569,4.20195282,2398.4,2398.3,7.4531315]
[1750736740766,0.99415282,2398.4,2398.3,7.4531315]
[1750736741762,0.99415282,2398.4,2398.3,8.8352315]
[1750736742064,1.80591611,2398.4,2398.3,8.8352315]
[1750736742561,1.80591611,2398.4,2398.3,8.0018515]
[1750736742763,1.80591611,2398.4,2398.3,8.8352315]
[1750736742954,1.80591611,2398.4,2398.3,0.0637515]
[1750736743159,5.01371611,2398.4,2398.3,0.0637515]
[1750736743360,0.83345,2398.1,2398.0,0.6923]
[1750736744063,4.04125,2398.1,2398.0,0.6923]
[1750736744268,3.2078,2398.1,2397.6,0.7051]
[1750736744468,3.30069312,2397.9,2397.8,0.6923]
[1750736746172,0.83352,2397.9,2397.8,0.6923]
[1750736746368,7.10227312,2398.1,2397.6,0.7051]
[1750736746672,7.10227312,2398.1,2397.6,1.3832]
[1750736746872,0.7117,2398.0,2397.6,1.3832]
[1750736747071,0.7117,2398.0,2397.6,2.815]
[1750736747575,0.83359,2397.7,2397.6,2.815]
[1750736747775,0.83354,2397.9,2397.6,3.6486]
[1750736747978,0.83357,2397.8,2397.7,1.4318]
[1750736753177,0.83359,2397.7,2397.6,1.4469515]
[1750736754080,0.83359,2397.7,2397.6,2.2805715]
[1750736754283,0.83359,2397.7,2397.6,1.4469515]
[1750736754579,0.83357,2397.8,2397.6,2.2805615]
[1750736754778,0.83357,2397.8,2397.6,3.7252615]
[1750736756868,0.83354,2397.9,2397.7,0.83359]
[1750736757378,0.83354,2397.9,2397.8,1.3463]
[1750736757676,0.83357,2397.8,2397.6,2.2805515]
[1750736757882,0.83357,2397.8,2397.6,3.6268515]
[1750736758277,0.83357,2397.8,2397.7,1.4289]
[1750736759082,0.83357,2397.8,2397.7,2.26249]
[1750736760781,0.83354,2397.9,2397.7,2.26249]
[1750736761280,3.2078,2398.1,2397.7,2.26249]
[1750736761281,3.2078,2398.1,2397.8,6.554]
[1750736761482,4.04126,2398.1,2397.9,1.50801]
[1750736761778,4.04126,2398.1,2397.9,2.96491]
[1750736763282,3.2078,2398.1,2398.0,0.83348]
[1750736763582,4.20099421,2398.1,2398.0,0.83348]
[1750736763877,4.20099421,2398.1,2398.0,2.29038]
[1750736764182,0.99319421,2398.1,2398.0,2.98568]
[1750736764383,1.82664421,2398.1,2398.0,2.98568]
[1750736764880,0.99319421,2398.1,2398.0,2.98568]
[1750736765982,1.82664421,2398.1,2398.0,2.98568]
[1750736766277,1.82664421,2398.1,2398.0,2.1522]
[1750736767881,1.82664421,2398.1,2398.0,0.6953]
[1750736768185,0.83348,2398.0,2397.9,0.7382515]
[1750736768681,1.82552393,2398.0,2397.9,0.7382515]
[1750736769472,1.82552393,2398.0,2397.9,1.5717715]
[1750736769676,0.99204393,2398.0,2397.9,1.5717715]
[1750736769882,0.99204393,2398.0,2397.9,2.8961715]
[1750736771177,6.35527312,2398.4,2398.2,0.83338]
[1750736771178,0.83336,2398.4,2398.2,0.83338]
[1750736771389,0.83336,2398.4,2398.3,0.7091]
[1750736771685,1.82580266,2398.4,2398.3,0.7091]
[1750736772381,0.99244266,2398.4,2398.3,1.54248]
[1750736774480,4.04106,2398.7,2398.4,0.83332]
[1750736774678,0.99187821,2398.6,2398.4,0.83332]
[1750736774885,0.99187821,2398.5,2398.4,2.22902]
[1750736776282,0.83323,2398.8,2398.6,0.83327]
[1750736776482,0.9915199,2398.7,2398.6,0.83327]
[1750736778285,0.9915199,2398.7,2398.6,1.51037]
[1750736778686,0.9915199,2398.7,2398.6,2.82547]
[1750736779389,0.7267,2398.9,2398.7,0.83321]
[1750736779580,0.98998146,2398.8,2398.7,0.83321]
[1750736779782,1.82318146,2398.8,2398.7,0.83321]
[1750736780488,1.82318146,2398.8,2398.6,2.82545]
[1750736780690,0.8332,2398.8,2398.6,2.8892015]
[1750736780889,0.8332,2398.8,2398.7,0.83324]
[1750736781186,0.98981598,2398.8,2398.6,2.0559515]
[1750736781382,0.83323,2398.8,2398.6,1.5741115]
[1750736781891,0.7267,2398.9,2398.8,0.8332]
[1750736782081,1.71639874,2398.9,2398.8,0.8332]
[1750736783791,2.54956874,2398.9,2398.7,0.83322]
[1750736783992,0.8332,2398.8,2398.6,1.5741115]
[1750736784185,0.83322,2398.8,2398.6,0.7408515]
[1750736784382,0.7267,2398.9,2398.6,0.7408515]
[1750736784383,1.55989,2398.9,2398.6,0.7408515]
[1750736784587,0.98934073,2398.8,2398.7,0.83324]
[1750736786489,3.8849,2399.0,2398.9,0.83317]
[1750736786687,5.70748556,2399.0,2398.8,0.83318]
[1750736786886,0.98944556,2398.9,2398.8,0.83318]
[1750736788195,0.98945549,2398.9,2398.8,0.83318]
[1750736795900,0.98945549,2398.9,2398.8,0.8969315]
[1750736800403,0.98945549,2398.9,2398.8,0.0637515]
[1750736800597,1.66665549,2398.9,2398.8,0.8969515]
[1750736800796,0.98945549,2398.9,2398.8,0.8969515]
[1750736801600,0.98945549,2398.9,2398.8,2.2227515]
[1750736802407,5.70463984,2399.6,2399.4,0.833]
[1750736802607,4.04074,2399.6,2399.4,0.833]
[1750736803204,4.04074,2399.6,2399.5,0.83296]
[1750736803505,3.2078,2399.6,2399.5,0.83296]
[1750736803900,3.2078,2399.6,2399.4,0.83298]
[1750736804207,4.04074,2399.6,2399.4,0.83298]
[1750736805001,0.83298,2399.5,2399.2,0.6687]
[1750736805802,0.83298,2399.5,2399.3,0.83302]
[1750736806105,0.6819,2399.4,2399.3,0.83302]
[1750736807098,3.14907312,2399.7,2399.5,0.83295]
[1750736807405,3.98197312,2399.7,2399.5,0.83295]
[1750736807603,3.14907312,2399.7,2399.5,0.83295]
[1750736807804,3.98197312,2399.7,2399.5,0.83295]
[1750736808507,3.14907312,2399.7,2399.6,0.83293]
[1750736808709,3.98196312,2399.7,2399.5,0.83295]
[1750736809007,0.83294,2399.6,2399.4,0.83298]
[1750736810495,0.83294,2399.6,2399.3,1.3962]
[1750736810496,0.83296,2399.5,2399.3,0.83301]
[1750736811207,3.30016312,2399.5,2399.2,0.83307]
[1750736811398,1.49731,2399.4,2399.2,0.83307]
[1750736811800,0.6643,2399.4,2399.3,0.83303]
[1750736813403,6.50795312,2399.5,2399.3,0.83303]
[1750736813609,4.04078,2399.5,2399.4,0.833]
[1750736813809,3.2078,2399.5,2399.4,0.833]
[1750736814314,4.19025925,2399.5,2399.4,0.833]
[1750736814513,5.02321925,2399.5,2399.4,0.833]
[1750736814813,5.02321925,2399.5,2399.3,0.83301]
[1750736815014,0.98245925,2399.4,2399.3,0.83301]
[1750736816613,1.81545925,2399.4,2399.3,0.83301]
[1750736817017,0.98245925,2399.4,2399.3,0.83301]
[1750736820521,1.81547925,2399.4,2399.2,0.83305]
[1750736820816,0.83302,2399.4,2399.2,0.83305]
[1750736821415,4.04078,2399.5,2399.3,0.83303]
[1750736821614,0.98268574,2399.4,2399.1,7.8749]
[1750736821814,4.04078,2399.5,2399.4,0.833]